bitfinex/quotes_SOLUSD_20250123
["timestamp","ask_amount","ask_price","bid_price","bid_amount"]
[1737610629170,11.61581836,249.51,249.43,11.61581836]
[1737610629661,11.61581836,249.51,249.48,312.0]
[1737610629864,11.61581836,249.6,249.49,11.61581836]
[1737610630066,13.27661836,249.64,249.58,20.0]
[1737610630247,16.83469715,249.66,249.57,11.61581836]
[1737610630454,11.61581836,249.63,249.55,11.61581836]
[1737610630757,7.47168129,249.7,249.51,11.61581836]
[1737610630758,11.61581836,249.61,249.51,11.61581836]
[1737610630960,11.61581836,249.61,249.47,6.5227]
[1737610630961,11.61581836,249.59,249.49,15.62391836]
[1737610631168,11.61581836,249.61,249.51,11.61581836]
[1737610631565,11.61581836,249.57,249.51,20.0]
[1737610632255,11.61581836,249.53,249.45,4.0087]
[1737610632444,11.61581836,249.5,249.45,4.0087]
[1737610632645,11.61581836,249.5,249.43,4.009]
[1737610633056,11.61581836,249.52,249.49,312.0]
[1737610633567,11.61581836,249.52,249.45,20.0]
[1737610633956,23.776884,249.56,249.45,20.0]
[1737610634160,11.61581836,249.51,249.45,20.0]
[1737610634579,11.61581836,249.55,249.47,20.0]
[1737610634771,11.61581836,249.55,249.47,31.61581836]
[1737610635373,11.61581836,249.59,249.52,20.0]
[1737610636378,11.61581836,249.61,249.53,11.61581836]
[1737610636582,11.61581836,249.63,249.6,312.0]
[1737610637072,11.61581836,249.61,249.51,11.61581836]
[1737610637277,11.61581836,249.59,249.49,11.61581836]
[1737610637467,11.61581836,249.55,249.47,15.62421836]
[1737610637654,11.61581836,249.57,249.49,11.61581836]
[1737610638069,11.61581836,249.57,249.47,15.62421836]
[1737610639616,11.61581836,249.54,249.47,4.0084]
[1737610640150,11.61581836,249.54,249.53,312.0]
[1737610640878,35.39270236,249.54,249.53,312.0]
[1737610642356,11.61581836,249.54,249.53,312.0]
[1737610645880,35.39270236,249.54,249.53,312.0]
[1737610646590,11.61581836,249.54,249.53,312.0]
[1737610648890,23.776884,249.52,249.47,0.063]
[1737610649091,11.61581836,249.48,249.47,0.063]
[1737610650093,15.62411836,249.48,249.47,0.063]
[1737610650288,39.40100236,249.48,249.47,0.063]
[1737610651796,39.40100236,249.48,249.47,312.063]
[1737610652603,51.01682072,249.48,249.47,0.063]
[1737610653268,23.776884,249.47,249.31,1.5574]
[1737610653470,11.61581836,249.39,249.34,20.0]
[1737610653703,11.61581836,249.41,249.32,11.61581836]
[1737610654079,11.61581836,249.44,249.36,31.61581836]
[1737610654302,11.61581836,249.46,249.36,31.61581836]
[1737610654794,11.61581836,249.46,249.37,4.0101]
[1737610655583,11.61581836,249.46,249.44,312.0]
[1737610658893,11.64581836,249.48,249.39,11.61581836]
[1737610659101,0.03,249.48,249.42,11.61581836]
[1737610660196,0.03,249.48,249.43,1.5724]
[1737610660713,0.03,249.48,249.46,24.0086]
[1737610660894,0.03,249.48,249.47,20.0]
[1737610661784,0.03,249.48,249.46,4.0086]
[1737610661785,0.03,249.48,249.46,35.62441836]
[1737610661984,0.03,249.48,249.47,312.60112577]
[1737610662186,0.0001,249.48,249.47,342.0]
[1737610663221,0.0001,249.48,249.47,343.0]
[1737610663411,0.0001,249.48,249.47,342.0]
[1737610664493,11.26591836,249.59,249.5,50.0]
[1737610664709,11.26591836,249.59,249.51,1.5724]
[1737610664918,11.61581836,249.61,249.55,20.0]
[1737610665416,11.61581836,249.59,249.51,1.5724]
[1737610665913,11.61581836,249.59,249.52,20.0]
[1737610666115,11.61581836,249.59,249.53,4.0075]
[1737610666311,11.61581836,249.59,249.54,20.0]
[1737610667326,11.61581836,249.59,249.5,11.61581836]
[1737610667497,11.61581836,249.55,249.49,4.0081]
[1737610668214,11.61581836,249.55,249.49,20.0]
[1737610668419,11.61581836,249.55,249.5,20.0]
[1737610668601,11.61581836,249.55,249.47,4.0084]
[1737610668918,11.61581836,249.55,249.49,20.0]
[1737610669122,11.61581836,249.55,249.47,4.0084]
[1737610669505,11.61581836,249.55,249.49,20.0]
[1737610670618,11.61581836,249.55,249.53,312.0]
[1737610672923,11.61581836,249.55,249.5,4.0079]
[1737610673635,11.64581836,249.59,249.51,20.0]
[1737610673800,0.03,249.59,249.52,11.61581836]
[1737610674627,0.03,249.59,249.53,4.0075]
[1737610674929,0.03,249.59,249.55,20.0]
[1737610675521,0.03,249.59,249.57,20.0]
[1737610675702,0.0001,249.59,249.58,12.21674217]
[1737610675906,0.0001,249.59,249.58,324.21674217]
[1737610676118,0.0001,249.59,249.58,323.61581836]
[1737610676727,11.83310338,249.78,249.67,5.6687]
[1737610676928,11.61581836,249.74,249.67,5.6687]
[1737610677160,11.61581836,249.74,249.7,20.0]
[1737610677302,0.21728502,249.78,249.7,20.0]
[1737610677303,11.61581836,249.76,249.7,20.0]
[1737610678406,11.61581836,249.72,249.65,4.0055]
[1737610678608,11.11581836,249.72,249.65,4.0055]
[1737610679224,11.11581836,249.72,249.67,20.0]
[1737610679726,0.21728502,249.78,249.67,20.0]
[1737610679727,11.61581836,249.74,249.67,20.0]
[1737610679914,11.61581836,249.74,249.73,312.0]
[1737610681243,35.39270236,249.74,249.61,11.61581836]
[1737610681422,11.61581836,249.71,249.61,11.61581836]
[1737610681844,11.61581836,249.71,249.64,20.0]
[1737610683344,11.61581836,249.71,249.63,11.61581836]
[1737610683648,11.61581836,249.69,249.61,11.61581836]
[1737610683844,11.61581836,249.69,249.62,20.0]
[1737610684223,11.61581836,249.67,249.62,312.0]
[1737610685922,11.61581836,249.67,249.57,15.62261836]
[1737610686122,11.61581836,249.67,249.6,20.0]
[1737610686332,11.61581836,249.69,249.62,20.0]
[1737610687174,11.61581836,249.67,249.62,20.0]
[1737610687454,11.61581836,249.65,249.6,20.0]
[1737610687624,11.61581836,249.67,249.6,20.0]
[1737610689075,11.61581836,249.67,249.63,312.0]
[1737610689867,11.61581836,249.65,249.63,312.0]
[1737610690261,11.61581836,249.68,249.63,312.0]
[1737610690451,11.61581836,249.72,249.63,15.62161836]
[1737610692970,11.61581836,249.7,249.61,15.62191836]
[1737610693161,11.61581836,249.68,249.62,20.0]
[1737610693469,27.810984,249.74,249.6,0.063]
[1737610693470,11.61581836,249.66,249.6,0.063]
[1737610693775,11.61581836,249.64,249.6,0.063]
[1737610695473,11.61581836,249.66,249.61,20.0]
[1737610695991,11.61581836,249.68,249.61,20.0]
[1737610696496,11.61581836,249.68,249.64,312.0]
[1737610696995,11.61581836,249.68,249.62,24.006]
[1737610698990,11.61581836,249.66,249.6,0.063]
[1737610699179,11.61581836,249.64,249.6,0.063]
[1737610699772,11.61581836,249.66,249.61,4.0062]
[1737610699972,11.61581836,249.67,249.62,20.0]
[1737610700271,11.61581836,249.67,249.61,312.0]
[1737610700890,11.61581836,249.67,249.64,20.0]
[1737610701104,11.61581836,249.67,249.61,312.0]
[1737610702209,11.61581836,249.67,249.61,316.0061]
[1737610702701,11.61581836,249.67,249.61,4.0061]
[1737610702993,11.61581836,249.67,249.62,20.0]
[1737610703170,11.61581836,249.69,249.62,20.0]
[1737610703374,11.61581836,249.69,249.62,24.006]
[1737610705498,1.5148,249.7,249.62,20.0]
[1737610705499,11.61581836,249.67,249.62,20.0]
[1737610705683,11.61581836,249.67,249.62,332.0]
[1737610706005,1.5012,249.62,249.61,0.063]
[1737610706175,1.5012,249.62,249.45,4.0087]
[1737610706501,11.61581836,249.53,249.43,11.61581836]
[1737610706802,11.61581836,249.53,249.41,1.5106]
[1737610706803,11.61581836,249.49,249.41,4.0093]
[1737610706990,11.61581836,249.47,249.41,4.0093]
[1737610707211,11.61581836,249.45,249.37,4.0101]
[1737610707885,11.61581836,249.43,249.36,4.0732]
[1737610708200,11.61581836,249.48,249.39,11.61581836]
[1737610708382,11.61581836,249.48,249.42,20.0]
[1737610708992,11.61581836,249.46,249.42,312.0]
[1737610709196,11.61581836,249.44,249.36,4.0732]
[1737610709402,11.61581836,249.41,249.36,0.063]
[1737610709572,11.61581836,249.39,249.36,0.063]
[1737610709774,11.61581836,249.37,249.36,0.063]
[1737610710473,35.39270236,249.37,249.36,0.063]
[1737610711080,47.00852072,249.37,249.36,0.063]
[1737610711280,35.39270236,249.37,249.36,0.063]
[1737610713198,11.61581836,249.37,249.36,0.063]
[1737610715079,11.61581836,249.39,249.36,0.063]
[1737610715274,11.61581836,249.41,249.36,4.0731]
[1737610716575,11.61581836,249.41,249.36,316.0731]
[1737610716779,11.61581836,249.37,249.36,312.063]
[1737610716977,11.61581836,249.37,249.36,0.063]
[1737610718619,47.00852072,249.37,249.36,0.063]
[1737610722001,35.39270236,249.37,249.36,0.063]
[1737610722205,11.61581836,249.4,249.36,0.063]
[1737610722517,11.61581836,249.4,249.36,4.0732]
[1737610723419,1.0,249.52,249.36,4.0732]
[1737610723420,11.61581836,249.54,249.41,50.0]
[1737610723718,11.61581836,249.54,249.49,20.0]
[1737610724097,11.61581836,249.54,249.49,24.008]
[1737610725418,11.61581836,249.54,249.49,312.0]
[1737610725595,11.61581836,249.52,249.43,4.0091]
[1737610725799,18.50089872,249.51,249.43,4.0091]
[1737610727100,18.53089872,249.6,249.45,20.0]
[1737610727101,18.50089872,249.53,249.45,20.0]
[1737610728426,18.50089872,249.53,249.46,4.0086]
[1737610728608,18.50089872,249.53,249.47,312.0]
[1737610729006,18.50089872,249.57,249.46,22.50949872]
[1737610729208,18.50089872,249.55,249.46,22.50949872]
[1737610729926,18.50089872,249.55,249.46,4.0086]
[1737610730926,17.50060656,249.55,249.46,4.0086]
[1737610731726,18.53089872,249.6,249.46,4.0086]
[1737610731727,18.50089872,249.51,249.46,4.0086]
[1737610732416,23.776884,249.5,249.44,312.0]
[1737610732615,23.776884,249.5,249.4,18.50089872]
[1737610732616,18.50089872,249.49,249.4,4.0094]
[1737610732819,18.50089872,249.43,249.38,4.0098]
[1737610733124,18.50089872,249.43,249.36,0.063]
[1737610734638,18.50089872,249.41,249.36,0.063]
[1737610735514,18.50089872,249.41,249.36,312.063]
[1737610736635,18.50089872,249.41,249.36,316.0731]
[1737610736841,18.50089872,249.43,249.36,316.0731]
[1737610740225,18.50089872,249.41,249.36,316.0731]
[1737610740742,18.50089872,249.39,249.36,312.063]
[1737610740910,18.50089872,249.39,249.36,0.063]
[1737610741115,4.0087,249.46,249.36,0.063]
[1737610741116,18.50089872,249.37,249.36,0.063]
[1737610742318,18.50089872,249.41,249.36,4.0731]
[1737610742536,18.50089872,249.45,249.36,4.0731]
[1737610743037,18.50089872,249.43,249.36,4.0731]
[1737610743932,18.50089872,249.43,249.37,312.0]
[1737610744113,18.50089872,249.47,249.37,330.50089872]
[1737610744321,18.50089872,249.47,249.37,18.50089872]
[1737610744832,18.50089872,249.47,249.38,4.0099]
[1737610745241,18.50089872,249.47,249.4,20.0]
[1737610745543,18.50089872,249.45,249.38,4.0099]
[1737610745714,18.50089872,249.39,249.36,0.063]
[1737610745915,42.27778272,249.37,249.36,0.063]
[1737610747330,60.77868144,249.37,249.36,0.063]
[1737610747635,27.787084,249.36,249.27,0.063]
[1737610747836,18.50089872,249.28,249.27,0.063]
[1737610748019,18.50089872,249.3,249.27,0.063]
[1737610748225,18.50089872,249.32,249.27,4.0746]
[1737610749348,18.50089872,249.3,249.27,0.063]
[1737610750250,18.50089872,249.28,249.27,0.063]
[1737610750951,18.50089872,249.3,249.27,0.063]
[1737610751631,4.0101,249.37,249.27,0.063]
[1737610751830,6.0695,249.41,249.27,0.063]
[1737610751831,11.58139829,249.31,249.27,4.0745]
[1737610752130,11.58139829,249.34,249.27,4.0745]
[1737610752950,11.58139829,249.34,249.27,15.65589829]
[1737610753524,11.58139829,249.34,249.3,4.0112]
[1737610754225,1.547,249.42,249.32,31.58139829]
[1737610754226,11.58139829,249.4,249.32,31.58139829]
[1737610754629,11.58139829,249.42,249.34,11.58139829]
[1737610755149,11.58139829,249.42,249.3,14.0392]
[1737610755150,11.58139829,249.44,249.36,11.58139829]
[1737610755355,11.58139829,249.46,249.36,11.58139829]
[1737610755648,23.776884,249.45,249.37,4.0101]
[1737610755853,23.776884,249.45,249.37,22.51924669]
[1737610756026,18.50914669,249.44,249.37,4.0101]
[1737610757252,18.50914669,249.44,249.37,316.0101]
[1737610757728,18.50914669,249.42,249.37,316.0101]
[1737610758451,23.776884,249.39,249.37,312.0]
[1737610758632,23.776884,249.39,249.33,20.0]
[1737610759641,23.776884,249.39,249.32,4.0109]
[1737610760557,18.50914669,249.38,249.32,4.0109]
[1737610760852,18.50914669,249.36,249.3,4.0112]
[1737610761551,18.50914669,249.36,249.27,18.57214669]
[1737610761552,23.776884,249.31,249.27,0.063]
[1737610761856,23.776884,249.28,249.27,0.063]
[1737610764141,18.50914669,249.29,249.27,0.063]
[1737610764457,18.50914669,249.31,249.27,4.0746]
[1737610764657,18.50914669,249.33,249.27,4.0746]
[1737610765158,18.50914669,249.35,249.27,4.0746]
[1737610765365,18.50914669,249.31,249.27,4.0746]
[1737610765957,18.50914669,249.33,249.27,4.0746]
[1737610766155,18.50914669,249.35,249.27,4.0746]
[1737610767061,18.50914669,249.35,249.27,14.1038]
[1737610768169,18.50914669,249.35,249.3,316.0111]
[1737610768662,18.50914669,249.33,249.29,4.0113]
[1737610771758,18.50914669,249.33,249.29,316.0113]
[1737610772955,18.50914669,249.35,249.29,316.0113]
[1737610773155,18.50914669,249.37,249.3,20.0]
[1737610773358,18.50914669,249.35,249.29,4.0113]
[1737610773667,23.776884,249.3,249.27,0.063]
[1737610773844,18.50914669,249.31,249.27,0.063]
[1737610774965,18.50914669,249.31,249.27,4.0746]
[1737610776166,18.50914669,249.31,249.27,316.0746]
[1737610776556,0.03,249.36,249.3,38.50914669]
[1737610777071,18.50914669,249.35,249.29,4.0113]
[1737610777283,18.50914669,249.33,249.27,0.063]
[1737610777464,18.50914669,249.33,249.27,4.0745]
[1737610777669,11.5807262,249.33,249.27,4.0745]
[1737610779155,23.776884,249.32,249.27,0.063]
[1737610779374,23.776884,249.3,249.27,0.063]
[1737610779671,11.5807262,249.31,249.27,316.0746]
[1737610780049,11.5807262,249.31,249.27,4.0746]
[1737610780252,11.5807262,249.33,249.27,4.0746]
[1737610782978,11.5807262,249.29,249.27,0.063]
[1737610783163,23.776884,249.28,249.27,0.063]
[1737610784564,11.5807262,249.29,249.27,0.063]
[1737610784761,11.5807262,249.34,249.27,4.0745]
[1737610784959,11.5807262,249.34,249.27,3.5745]
[1737610786176,23.776884,249.33,249.27,315.5745]
[1737610786786,11.5807262,249.32,249.27,315.5745]
[1737610788369,23.776884,249.31,249.27,3.5745]
[1737610789083,23.776884,249.31,249.27,3.6375]
[1737610789802,11.5807262,249.3,249.27,0.063]
[1737610789995,35.3576102,249.28,249.27,0.063]
[1737610792486,23.776884,249.28,249.27,0.063]
[1737610793563,35.3576102,249.28,249.27,0.063]
[1737610794688,23.776884,249.28,249.27,0.063]
[1737610796293,35.3576102,249.28,249.27,0.063]
[1737610800977,23.776884,249.27,249.23,0.063]
[1737610801186,46.9383364,249.24,249.23,0.063]
[1737610802093,48.5526364,249.24,249.23,0.063]
[1737610802277,30.930384,249.23,249.22,0.063]
[1737610802595,23.776884,249.21,249.1,0.063]
[1737610802798,35.3576102,249.12,249.1,0.063]
[1737610803870,46.9383364,249.12,249.1,0.063]
[1737610804276,50.9524364,249.12,249.1,0.063]
[1737610805196,39.3717102,249.12,249.1,0.063]
[1737610805397,23.776884,249.11,249.1,0.063]
[1737610807699,23.776884,249.09,249.03,0.063]
[1737610807875,35.3576102,249.04,249.03,0.063]
[1737610810598,4.0151,249.06,249.03,0.063]
[1737610810599,11.5807262,249.09,249.03,312.063]
[1737610810901,11.5807262,249.11,249.07,20.0]
[1737610811295,11.5807262,249.11,249.04,11.5807262]
[1737610811608,23.776884,249.1,249.06,4.0149]
[1737610811974,10.4787,249.18,249.06,4.0149]
[1737610811975,11.5807262,249.13,249.06,4.0149]
[1737610812181,11.5807262,249.15,249.06,15.5956262]
[1737610812479,23.776884,249.1,249.06,4.0149]
[1737610813198,23.776884,249.08,249.06,0.063]
[1737610814084,35.3576102,249.07,249.06,0.063]
[1737610818290,35.3576102,249.04,249.03,0.063]
[1737610818496,11.5807262,249.09,249.03,4.0785]
[1737610818704,11.5807262,249.14,249.05,11.5807262]
[1737610819210,23.776884,249.13,249.05,11.5807262]
[1737610819392,11.5807262,249.12,249.03,15.6592262]
[1737610820201,23.776884,249.11,249.03,15.6592262]
[1737610821213,23.776884,249.09,249.03,4.0785]
[1737610821405,23.776884,249.09,249.05,312.0]
[1737610822713,23.776884,249.11,249.06,4.015]
[1737610824085,23.776884,249.13,249.06,4.015]
[1737610825013,11.5807262,249.19,249.1,31.5807262]
[1737610825314,11.5807262,249.18,249.08,11.5807262]
[1737610825605,15.6230262,249.24,249.07,8.2212]
[1737610825606,0.03,249.11,249.07,8.2212]
[1737610825990,0.03,249.11,249.08,4.0147]
[1737610827005,0.03,249.11,249.1,312.0]
[1737610827898,0.03,249.11,249.1,316.0144]
[1737610830017,11.6107262,249.24,249.14,11.5807262]
[1737610830314,20.0,249.21,249.14,11.5807262]
[1737610830504,23.776884,249.2,249.14,11.5807262]
[1737610830700,20.0,249.21,249.14,11.5807262]
[1737610830906,11.5807262,249.2,249.1,15.5951262]
[1737610831610,23.776884,249.17,249.1,15.5951262]
[1737610831788,11.5807262,249.16,249.1,4.0144]
[1737610833008,23.776884,249.15,249.1,4.0144]
[1737610833194,23.776884,249.15,249.1,316.0144]
[1737610834210,23.776884,249.17,249.1,327.5951262]
[1737610834413,23.776884,249.19,249.1,15.5951262]
[1737610835421,23.776884,249.19,249.12,11.5807262]
[1737610835715,23.776884,249.19,249.1,11.5807262]
[1737610835904,23.776884,249.17,249.1,11.5807262]
[1737610836107,23.776884,249.17,249.08,15.5954262]
[1737610837317,23.776884,249.17,249.1,4.0144]
[1737610839424,23.776884,249.15,249.07,8.2212]
[1737610839627,23.776884,249.11,249.07,5.6165]
[1737610839803,23.776884,249.11,249.07,1.6017]
[1737610841793,1.65000487,249.2,249.07,1.6017]
[1737610841794,11.5807262,249.14,249.07,5.6165]
[1737610842198,23.776884,249.13,249.07,5.6165]
[1737610842403,23.776884,249.13,249.08,11.5807262]
[1737610843323,23.776884,249.13,249.09,4.0146]
[1737610844215,23.776884,249.17,249.09,4.0146]
[1737610844599,23.776884,249.15,249.07,5.6164]
[1737610845326,23.776884,249.15,249.1,312.0]
[1737610846324,0.03,249.2,249.1,4.0143]
[1737610846530,0.03,249.2,249.11,11.5807262]
[1737610847305,23.806884,249.2,249.11,15.5948262]
[1737610848507,23.776884,249.16,249.09,4.0145]
[1737610849126,23.776884,249.16,249.1,0.063]
[1737610849327,23.776884,249.16,249.12,312.0]
[1737610849533,23.776884,249.16,249.1,0.063]
[1737610849534,23.776884,249.14,249.1,0.063]
[1737610849856,23.776884,249.12,249.1,0.063]
[1737610851825,11.5807262,249.17,249.1,0.063]
[1737610852036,11.5807262,249.17,249.1,4.0773]
[1737610852348,11.5807262,249.19,249.1,4.0773]
[1737610852635,11.5807262,249.19,249.11,312.0]
[1737610852934,23.776884,249.18,249.1,4.0773]
[1737610856036,23.776884,249.18,249.11,312.0]
[1737610856215,23.776884,249.18,249.11,316.0142]
[1737610857912,0.03,249.2,249.15,11.5807262]
[1737610858217,0.03,249.2,249.17,11.5807262]
[1737610859623,0.03,249.2,249.15,11.5807262]
[1737610859930,0.03,249.2,249.13,5.5593]
[1737610860242,0.03,249.2,249.14,7.41744048]
[1737610860619,23.776884,249.19,249.13,1.5455]
[1737610860942,0.03,249.18,249.13,313.5455]
[1737610861233,23.776884,249.17,249.1,4.0773]
[1737610861413,23.776884,249.17,249.11,20.0]
[1737610861737,23.806884,249.18,249.11,20.0]
[1737610862738,23.806884,249.18,249.11,24.0142]
[1737610864417,23.806884,249.18,249.11,336.0142]
[1737610866620,11.59351897,249.17,249.11,312.0]
[1737610866825,23.776884,249.12,249.1,0.063]
[1737610867726,35.37040297,249.11,249.1,0.063]
[1737610869237,11.59351897,249.15,249.1,0.063]
[1737610869424,11.62351897,249.18,249.1,4.0773]
[1737610869628,0.03,249.18,249.13,11.59351897]
[1737610869928,0.03,249.18,249.15,312.0]
[1737610870134,0.03,249.18,249.15,323.59351897]
[1737610870430,0.03,249.18,249.15,11.59351897]
[1737610871023,0.03,249.18,249.16,4.0134]
[1737610871551,0.03,249.18,249.17,20.0]
[1737610871847,0.03,249.18,249.17,31.59351897]
[1737610873336,0.03,249.18,249.17,343.59351897]
[1737610874650,0.03,249.2,249.18,4.0131]
[1737610874824,0.03,249.2,249.19,32.19521668]
[1737610877724,0.03,249.2,249.19,344.19521668]
[1737610877924,0.03,249.2,249.19,343.59351897]
[1737610887854,0.03,249.2,249.19,339.41425044]
[1737610893966,0.03,249.2,249.19,343.42725044]
[1737610901268,0.03,249.2,249.19,312.0]
[1737610901577,0.03,249.2,249.19,323.42725044]
[1737610902770,0.03,249.2,249.19,316.013]
[1737610903069,0.03,249.2,249.19,323.42725044]
[1737610903257,0.03,249.24,249.23,20.0]
[1737610903452,0.0001,249.24,249.23,57.67289492]
[1737610903657,0.0001,249.24,249.23,61.61745804]
[1737610903951,0.03,249.36,249.23,31.35881356]
[1737610904157,0.03,249.36,249.27,7.41425044]
[1737610904158,23.776884,249.34,249.27,7.41425044]
[1737610904964,23.776884,249.34,249.27,11.42585044]
[1737610906459,23.776884,249.34,249.32,312.0]
[1737610907848,23.806884,249.34,249.32,312.0]
[1737610910263,0.03,249.34,249.32,312.0]
[1737610910575,0.03,249.34,249.27,11.42585044]
[1737610910761,0.03,249.34,249.28,20.0]
[1737610913646,0.03,249.34,249.29,312.0]
[1737610916767,23.776884,249.31,249.23,7.41425044]
[1737610917149,0.03,249.34,249.21,7.41425044]
[1737610917150,23.776884,249.29,249.21,7.41425044]
[1737610917367,23.776884,249.29,249.24,20.0]
[1737610917550,23.776884,249.29,249.21,11.42685044]
[1737610919773,23.776884,249.29,249.22,312.0]
[1737610920277,23.776884,249.29,249.21,11.42685044]
[1737610920670,23.776884,249.27,249.19,11.42705044]
[1737610920866,23.776884,249.27,249.19,7.41425044]
[1737610921949,23.776884,249.25,249.18,0.063]
[1737610922152,23.776884,249.23,249.18,0.063]
[1737610924190,23.776884,249.19,249.18,0.063]
[1737610924669,7.41425044,249.2,249.18,0.063]
[1737610925169,23.776884,249.19,249.18,0.063]
[1737610925572,23.776884,249.21,249.18,0.063]
[1737610926490,7.41425044,249.22,249.18,0.063]
[1737610926491,7.41425044,249.24,249.18,0.063]
[1737610926654,23.776884,249.23,249.18,20.063]
[1737610927481,23.776884,249.23,249.18,332.063]
[1737610927683,23.776884,249.25,249.18,339.47725044]
[1737610927854,7.41425044,249.28,249.18,343.49025044]
[1737610928059,7.41425044,249.28,249.18,31.49025044]
[1737610928280,7.41425044,249.28,249.2,7.41425044]
[1737610928558,23.776884,249.27,249.2,7.41425044]
[1737610929179,7.41425044,249.28,249.2,7.41425044]
[1737610929386,7.41425044,249.3,249.22,7.41425044]
[1737610929570,7.41425044,249.32,249.24,7.41425044]
[1737610929770,0.03,249.34,249.24,7.41425044]
[1737610929771,7.44425044,249.34,249.24,7.41425044]
[1737610929986,7.44425044,249.34,249.25,4.012]
[1737610930375,7.44425044,249.34,249.26,7.41425044]
[1737610930663,0.03,249.34,249.29,20.0]
[1737610931087,0.03,249.34,249.29,332.0]
[1737610931589,0.03,249.34,249.29,20.0]
[1737610933993,0.03,249.34,249.29,4.0113]
[1737610934488,0.03,249.34,249.32,20.0]
[1737610935068,0.03,249.34,249.31,20.0]
[1737610936292,0.03,249.34,249.3,11.42535044]
[1737610937870,0.03,249.34,249.33,20.0]
[1737610938400,0.03,249.34,249.32,8.01583927]
[1737610938703,0.03,249.45,249.35,50.0]
[1737610938998,0.03,249.45,249.42,7.41425044]
[1737610939172,0.03,249.45,249.4,7.41425044]
[1737610939373,7.44425044,249.45,249.36,7.41425044]
[1737610939576,0.03,249.45,249.38,7.41425044]
[1737610939886,23.776884,249.44,249.36,7.41425044]
[1737610941396,23.776884,249.44,249.37,312.0]
[1737610941772,7.41425044,249.38,249.3,7.41425044]
[1737610943183,27.786484,249.4,249.32,7.41425044]
[1737610944797,27.786484,249.4,249.34,312.0]
[1737610946802,23.776884,249.34,249.26,7.41425044]
[1737610947303,23.776884,249.34,249.29,20.0]
[1737610947978,23.776884,249.32,249.29,20.0]
[1737610949576,11.42465044,249.35,249.29,20.0]
[1737610949780,23.776884,249.34,249.3,312.0]
[1737610950203,27.787484,249.34,249.3,312.0]
[1737610951000,23.776884,249.34,249.3,312.0]
[1737610952715,23.776884,249.34,249.29,20.0]
[1737610953605,7.41425044,249.37,249.29,4.0113]
[1737610954109,23.776884,249.36,249.3,7.41425044]
[1737610954688,23.776884,249.38,249.3,7.41425044]
[1737610954890,27.786884,249.38,249.3,7.41425044]
[1737610955100,4.0097,249.4,249.32,7.41425044]
[1737610955296,7.41425044,249.41,249.32,7.41425044]
[1737610955496,11.42375044,249.41,249.32,7.41425044]
[1737610955791,23.776884,249.4,249.35,312.0]
[1737610956310,0.03,249.38,249.35,312.0]
[1737610957212,23.806884,249.38,249.35,312.0]
[1737610957400,23.776884,249.36,249.31,20.0]
[1737610958801,23.806884,249.38,249.3,7.47725044]
[1737610959587,27.816784,249.38,249.3,7.47725044]
[1737610959805,0.03,249.38,249.32,7.41425044]
[1737610960519,0.03,249.38,249.35,312.0]
[1737610960697,0.03,249.38,249.3,11.48825044]
[1737610961814,23.776884,249.36,249.3,0.063]
[1737610963617,23.776884,249.36,249.31,312.0]
[1737610967915,7.41425044,249.35,249.31,312.0]
[1737610968089,23.776884,249.34,249.3,0.063]
[1737610968713,23.776884,249.35,249.3,0.063]
[1737610970801,23.776884,249.36,249.3,0.063]
[1737610971105,0.03,249.38,249.33,312.0]
[1737610971616,23.806884,249.38,249.3,7.47725044]
[1737610972588,27.816784,249.38,249.3,7.47725044]
[1737610974124,23.776884,249.36,249.3,0.063]
[1737610974493,23.776884,249.36,249.33,312.0]
[1737610977728,23.776884,249.36,249.3,0.063]
[1737610980515,27.787184,249.36,249.3,0.063]